fUST/lending_fUST_20250208
["ID","MTS","AMOUNT","RATE_DAILY","PERIOD"]
[352221789,1739005853023,-873.562794,0.0001178,2]
[352221790,1739005853033,-500.0,0.0001178,2]
[352221791,1739005853042,-500.0,0.0001178,2]
[352221792,1739005853051,-500.0,0.0001178,2]
[352221793,1739005853060,-500.0,0.0001178,2]
[352221794,1739005853069,-3224.88,0.0001178,2]
[352221795,1739005853078,-500.0,0.0001178,2]
[352221796,1739005853087,-500.0,0.0001178,2]
[352221797,1739005853096,-500.0,0.0001178,2]
[352221798,1739005853106,-852.8,0.0001178,2]
[352221799,1739005853115,-1282.27,0.0001178,2]
[352221800,1739005853127,-500.0,0.0001178,2]
[352221801,1739005853138,-699.92,0.0001178,2]
[352221802,1739005853148,-17929.08,0.0001178,2]
[352221803,1739005853160,-500.0,0.0001178,2]
[352221804,1739005853170,-782.47,0.0001178,2]
[352221805,1739005853179,-3389.24,0.0001178,2]
[352221806,1739005853191,-650.58,0.0001178,2]
[352221807,1739005853202,-500.0,0.0001178,2]
[352221808,1739005853212,-500.0,0.0001178,2]
[352221809,1739005853222,-151.0,0.0001178,2]
[352221810,1739005853231,-1066.11,0.0001178,2]
[352221811,1739005853240,-764.5,0.0001178,2]
[352221812,1739005853249,-151.0,0.0001178,2]
[352221813,1739005853258,-500.0,0.0001178,2]
[352221814,1739005853268,-253.088308,0.0001178,2]
[352221815,1739005853277,-1336.44,0.0001178,2]
[352221816,1739005853287,-1334.47,0.0001178,2]
[352221817,1739005853298,-253.088308,0.0001178,2]
[352221818,1739005853307,-500.0,0.0001178,2]
[352221819,1739005853317,-3193.59,0.0001178,2]
[352221820,1739005853327,-500.0,0.0001178,2]
[352221821,1739005853336,-500.0,0.0001178,2]
[352221822,1739005853345,-500.0,0.0001178,2]
[352221823,1739005853354,-500.0,0.0001178,2]
[352221824,1739005853363,-705.51,0.0001178,2]
[352221825,1739005853373,-500.0,0.0001178,2]
[352221826,1739005853382,-500.0,0.0001178,2]
[352221827,1739005853391,-1949.71,0.0001178,2]
[352221828,1739005853400,-5239.35,0.0001178,2]
[352221829,1739005853409,-500.0,0.0001178,2]
[352221830,1739005853419,-1018.8,0.0001178,2]
[352221831,1739005853428,-500.0,0.0001178,2]
[352221832,1739005853437,-1342.47,0.0001178,2]
[352221833,1739005853446,-657.33,0.0001178,2]
[352221834,1739005853455,-151.0,0.0001178,2]
[352221835,1739005853464,-500.0,0.0001178,2]
[352221836,1739005853474,-500.0,0.0001178,2]
[352221837,1739005853483,-500.0,0.0001178,2]
[352221838,1739005853495,-241.21611921,0.0001178,2]
[352221839,1739005853786,-1300.92388079,0.0001178,2]
[352221840,1739005853796,-369.56167079,0.0001178,2]
[352221841,1739005853806,-589.08,0.0001178,2]
[352221842,1739005853815,-12674.7246378,0.0001178,2]
[352221843,1739005853837,-28810.7124718,0.0001178,2]
[352221844,1739005853849,-3249.5528904,0.0001178,2]
[352221845,1739005853859,-162.87236585,0.0001178,2]
[352221846,1739005853873,-337.12763415,0.0001178,2]
[352221847,1739005853883,-500.0,0.0001178,2]
[352221848,1739005853892,-1289.54,0.0001178,2]
[352221849,1739005853901,-2034.31,0.0001178,2]
[352221850,1739005853911,-500.0,0.0001178,2]
[352221851,1739005853921,-500.0,0.0001178,2]
[352221852,1739005853930,-1712.41,0.0001178,2]
[352221853,1739005853940,-500.0,0.0001178,2]
[352221854,1739005853949,-13381.6198297,0.0001178,2]
[352221855,1739005853961,-2089.6001703,0.0001178,2]
[352221856,1739005853970,-500.0,0.0001178,2]
[352221857,1739005853979,-1177.1,0.0001178,2]
[352221858,1739005853989,-500.0,0.0001178,2]
[352221859,1739005853998,-909.84,0.0001178,2]
[352221860,1739005854008,-500.0,0.0001178,2]
[352221861,1739005854017,-500.0,0.0001178,2]
[352221862,1739005854027,-500.0,0.0001178,2]
[352221863,1739005854037,-500.0,0.0001178,2]
[352221864,1739005854046,-500.0,0.0001178,2]
[352221865,1739005854055,-2647.31,0.0001178,2]
[352221866,1739005854065,-1905.23,0.0001178,2]
[352221867,1739005854074,-328.590582,0.0001178,2]
[352221868,1739005854084,-500.0,0.0001178,2]
[352221869,1739005854093,-500.0,0.0001178,2]
[352221870,1739005854102,-500.0,0.0001178,2]
[352221871,1739005854111,-328.590582,0.0001178,2]
[352221872,1739005854121,-151.0,0.0001178,2]
[352221873,1739005854130,-500.0,0.0001178,2]
[352221874,1739005854140,-3845.07,0.0001178,2]
[352221875,1739005854149,-248.13759397,0.0001178,2]
[352221876,1739005854163,-251.86240603,0.0001178,2]
[352221877,1739005854172,-500.0,0.0001178,2]
[352221878,1739005854182,-500.0,0.0001178,2]
[352221879,1739005854192,-612.45,0.0001178,2]
[352221880,1739005854203,-151.0,0.0001178,2]
[352221881,1739005854212,-332.1857952,0.0001178,2]
[352221882,1739005854225,-167.8142048,0.0001178,2]
[352221883,1739005854234,-500.0,0.0001178,2]
[352221884,1739005854243,-151.0,0.0001178,2]
[352221885,1739005854252,-3395.29,0.0001178,2]
[352221886,1739005854262,-551.98,0.0001178,2]
[352221887,1739005854271,-8470.74,0.0001178,2]
[352221888,1739005854280,-4026.4,0.0001178,2]
[352221889,1739005854289,-1113.86946522,0.0001178,2]
[352221890,1739005854511,-282.04663332,0.00010958,2]
[352221891,1739005854730,-217.95336668,0.00010958,2]
[352221892,1739005854740,-500.0,0.00010958,2]
[352221893,1739005854750,-243.93338926,0.00010958,2]
[352221894,1739005854765,-256.06661074,0.00010958,2]
[352221895,1739005854775,-500.0,0.00010958,2]
[352221896,1739005854784,-500.0,0.00010958,2]
[352221897,1739005854794,-500.0,0.00011095,2]
[352221898,1739005854804,-500.0,0.00011232,2]
[352221899,1739005854814,-500.0,0.00011369,2]
[352221900,1739005854824,-500.0,0.00011506,2]
[352221901,1739005854834,-500.0,0.00011643,2]
[352221902,1739005854844,-446.22053478,0.0001178,2]
[352221903,1739005854853,-500.0,0.0001178,2]
[352221904,1739005854865,-810.15,0.0001178,2]
[352221905,1739005854875,-1702.16,0.0001178,2]
[352221906,1739005854885,-1259.85,0.0001178,2]
[352221907,1739005854895,-915.96,0.0001178,2]
[352221908,1739005854907,-572.14,0.0001178,2]
[352221909,1739005854916,-1588.49,0.0001178,2]
[352221910,1739005854926,-500.0,0.0001178,2]
[352221911,1739005854935,-1299.2,0.0001178,2]
[352221912,1739005854947,-500.0,0.0001178,2]
[352221913,1739005854956,-4673.49,0.0001178,2]
[352221914,1739005854967,-500.0,0.0001178,2]
[352221915,1739005854977,-500.0,0.0001178,2]
[352221916,1739005854987,-500.0,0.0001178,2]
[352221917,1739005854996,-641.0,0.0001178,2]
[352221918,1739005855006,-624.92,0.0001178,2]
[352221919,1739005855018,-500.0,0.0001178,2]
[352221920,1739005855028,-543.02,0.0001178,2]
[352221921,1739005855039,-500.0,0.0001178,2]
[352221922,1739005855049,-1215.37,0.0001178,2]
[352221923,1739005855060,-736.19,0.0001178,2]
[352221924,1739005855070,-500.0,0.0001178,2]
[352221925,1739005855079,-1598.99,0.0001178,2]
[352221926,1739005855088,-500.0,0.0001178,2]
[352221927,1739005855098,-500.0,0.0001178,2]
[352221928,1739005855109,-1000.0,0.00011879,2]
[352221929,1739005855119,-636.894908,0.00011886,2]
[352221930,1739005855129,-636.894908,0.00011886,2]
[352221931,1739005855138,-155.276126,0.00011886,2]
[352221932,1739005855148,-151.0,0.00011886,2]
[352221933,1739005855158,-1000.0,0.00011886,2]
[352221934,1739005855168,-500.0,0.00011896,2]
[352221935,1739005855177,-108738.69544481,0.00011916,5]
[352221936,1739005855189,-385056.93904863,0.00011916,5]
[352221937,1739005855487,-500.0,0.00010958,2]
[352221938,1739005855497,-500.0,0.00010958,2]
[352221939,1739005855507,-500.0,0.00010958,2]
[352221940,1739005855517,-852.81,0.00010958,2]
[352221941,1739005855527,-500.0,0.00011095,2]
[352221942,1739005855536,-500.0,0.00011095,2]
[352221943,1739005855546,-500.0,0.00011095,2]
[352221944,1739005855555,-500.0,0.00011232,2]
[352221945,1739005855563,-500.0,0.00011232,2]
[352221946,1739005855573,-500.0,0.00011369,2]
[352221947,1739005855583,-578.4468197,0.00011369,2]
[352221948,1739005855592,-500.0,0.00011506,2]
[352221949,1739005855601,-500.0,0.00011643,2]
[352221950,1739005855611,-389.56,0.0001178,2]
[352221951,1739005855620,-8669.59449068,0.00011916,5]
[352221952,1739005855631,-9847.099968,0.00011916,5]
[352221953,1739005855643,-651.71,0.00011916,5]
[352221971,1739006389220,7766.67,8.002e-05,2]
[352221977,1739006839794,220.0,8.002e-05,2]
[352222020,1739007032474,-166.46426822,0.00010858,2]
[352222022,1739007032484,-300.0,0.00010957,2]
[352222024,1739007032493,-372.02229542,0.00010957,2]
[352222025,1739007032502,-203.52195275,0.00010958,2]
[352222027,1739007032511,-500.0,0.00010958,2]
[352222029,1739007032520,-500.0,0.00010958,2]
[352222031,1739007032529,-500.0,0.00010958,2]
[352222032,1739007032538,-500.0,0.00010958,2]
[352222033,1739007032548,-500.0,0.00010958,2]
[352222034,1739007032557,-500.0,0.00010958,2]
[352222035,1739007032566,-500.0,0.00010958,2]
[352222036,1739007032576,-500.0,0.00010958,2]
[352222037,1739007032585,-500.0,0.00010958,2]
[352222038,1739007032594,-500.0,0.00010958,2]
[352222039,1739007032604,-500.0,0.00010958,2]
[352222041,1739007032613,-500.0,0.00010958,2]
[352222043,1739007032622,-574.93,0.00010958,2]
[352222045,1739007032631,-500.0,0.00010958,2]
[352222046,1739007032641,-500.0,0.00010958,2]
[352222047,1739007032650,-500.0,0.00010958,2]
[352222048,1739007032659,-500.0,0.00010958,2]
[352222049,1739007032668,-500.0,0.00010958,2]
[352222050,1739007032677,-500.0,0.00010958,2]
[352222051,1739007032687,-500.0,0.00010958,2]
[352222053,1739007032696,-363.96941578,0.00010958,2]
[352222069,1739007038314,-136.03058422,0.00010958,2]
[352222070,1739007038325,-500.0,0.00010958,2]
[352222071,1739007038334,-500.0,0.00010958,2]
[352222072,1739007038344,-510.95019985,0.00010958,2]
[352222073,1739007038354,-534.22713284,0.00010958,2]
[352222074,1739007038365,-479.0,0.00010958,2]
[352222075,1739007038375,-500.0,0.00010958,2]
[352222076,1739007038384,-500.0,0.00010958,2]
[352222077,1739007038394,-500.0,0.00010958,2]
[352222078,1739007038404,-500.0,0.00010958,2]
[352222079,1739007038414,-500.0,0.00010958,2]
[352222080,1739007038423,-500.0,0.00010958,2]
[352222081,1739007038432,-500.0,0.00010958,2]
[352222082,1739007038441,-500.0,0.00010958,2]
[352222083,1739007038451,-500.0,0.00010958,2]
[352222084,1739007038461,-500.0,0.00010958,2]
[352222085,1739007038469,-500.0,0.00010958,2]
[352222086,1739007038479,-500.0,0.00010958,2]
[352222087,1739007038488,-500.0,0.00010958,2]
[352222088,1739007038500,-500.0,0.00010958,2]
[352222089,1739007038509,-500.0,0.00010958,2]
[352222090,1739007038518,-500.0,0.00010958,2]
[352222091,1739007038527,-500.0,0.00010958,2]
[352222092,1739007038535,-500.0,0.00010958,2]
[352222093,1739007038544,-500.0,0.00010958,2]
[352222094,1739007038554,-500.0,0.00010958,2]
[352222095,1739007038563,-312.45948097,0.00010958,2]
[352222096,1739007038572,-500.0,0.00010958,2]
[352222097,1739007038581,-500.0,0.00010958,2]
[352222099,1739007038590,-500.0,0.00010958,2]
[352222100,1739007038599,-500.0,0.00010958,2]
[352222102,1739007038608,-500.0,0.00010958,2]
[352222104,1739007038617,-500.0,0.00010958,2]
[352222106,1739007038626,-500.0,0.00010958,2]
[352222108,1739007038635,-500.0,0.00010958,2]
[352222110,1739007038644,-500.0,0.00010958,2]
[352222111,1739007038654,-500.0,0.00010958,2]
[352222112,1739007038663,-500.0,0.00010958,2]
[352222113,1739007038672,-635.92,0.00010958,2]
[352222114,1739007038681,-500.0,0.00010958,2]
[352222115,1739007038690,-500.0,0.00010958,2]
[352222116,1739007038699,-500.0,0.00010958,2]
[352222117,1739007038708,-500.0,0.00010958,2]
[352222118,1739007038717,-500.0,0.00010958,2]
[352222119,1739007038726,-500.0,0.00010958,2]
[352222120,1739007038735,-500.0,0.00010958,2]
[352222121,1739007038744,-500.0,0.00010958,2]
[352222122,1739007038753,-500.0,0.00010958,2]
[352222123,1739007038762,-168.87784166,0.00010958,2]
[352222124,1739007038771,-500.0,0.00010958,2]
[352222125,1739007038780,-500.0,0.00010958,2]
[352222126,1739007038789,-500.0,0.00010958,2]
[352222127,1739007038798,-500.0,0.00010958,2]
[352222128,1739007038807,-500.0,0.00010958,2]
[352222129,1739007038817,-259.32308056,0.00010958,2]
[352222130,1739007038826,-500.0,0.00010958,2]
[352222131,1739007038836,-500.0,0.00010958,2]
[352222132,1739007038845,-500.0,0.00010958,2]
[352222133,1739007038855,-237.61177019,0.00010958,2]
[352222134,1739007038864,-591.33463904,0.00010958,2]
[352222135,1739007038873,-500.0,0.00010958,2]
[352222136,1739007038882,-839.19,0.00010958,2]
[352222137,1739007038892,-500.0,0.00010958,2]
[352222138,1739007038902,-500.0,0.00010958,2]
[352222139,1739007038912,-500.0,0.00010958,2]
[352222140,1739007038921,-500.0,0.00010958,2]
[352222141,1739007038930,-500.0,0.00010958,2]
[352222142,1739007038939,-500.0,0.00010958,2]
[352222143,1739007038949,-623.47,0.00010958,2]
[352222144,1739007038959,-500.0,0.00010958,2]
[352222145,1739007038968,-500.0,0.00010958,2]
[352222146,1739007038978,-500.0,0.00010958,2]
[352222147,1739007038987,-500.0,0.00010958,2]
[352222148,1739007038996,-500.0,0.00010958,2]
[352222149,1739007039005,-801.71,0.00010958,2]
[352222150,1739007039015,-681.77,0.00010958,2]
[352222151,1739007039024,-500.0,0.00010958,2]
[352222152,1739007039034,-500.0,0.00010958,2]
[352222153,1739007039043,-500.0,0.00010958,2]
[352222154,1739007039052,-500.0,0.00010958,2]
[352222155,1739007039061,-500.0,0.00010958,2]
[352222156,1739007039071,-500.0,0.00010958,2]
[352222157,1739007039080,-584.93,0.00010958,2]
[352222158,1739007039089,-500.0,0.00010958,2]
[352222159,1739007039098,-500.0,0.00010958,2]
[352222160,1739007039109,-500.0,0.00010958,2]
[352222161,1739007039284,-500.0,0.00010958,2]
[352222162,1739007039295,-500.0,0.00010958,2]
[352222163,1739007039305,-500.0,0.00010958,2]
[352222164,1739007039315,-500.0,0.00010958,2]
[352222165,1739007039325,-500.0,0.00010958,2]
[352222166,1739007039334,-417.62662071,0.00010958,2]
[352222167,1739007039345,-500.0,0.00010958,2]
[352222168,1739007039362,-500.0,0.00010958,2]
[352222169,1739007039378,-500.0,0.00010958,2]
[352222170,1739007039389,-500.0,0.00010958,2]
[352222171,1739007039399,-500.0,0.00010958,2]
[352222172,1739007039408,-500.0,0.00010958,2]
[352222173,1739007039417,-500.0,0.00010958,2]
[352222174,1739007039426,-500.0,0.00010958,2]
[352222175,1739007039436,-568.6231166,0.00010958,2]
[352222176,1739007039445,-500.0,0.00010958,2]
[352222177,1739007039454,-500.0,0.00010958,2]
[352222178,1739007039463,-500.0,0.00010958,2]
[352222179,1739007039472,-500.0,0.00010958,2]
[352222180,1739007039481,-500.0,0.00010958,2]
[352222181,1739007039490,-500.0,0.00010958,2]
[352222182,1739007039499,-500.0,0.00010958,2]
[352222183,1739007039508,-500.0,0.00010958,2]
[352222184,1739007039517,-1403.93,0.00010958,2]
[352222185,1739007039526,-500.0,0.00010958,2]
[352222186,1739007039535,-500.0,0.00010958,2]
[352222187,1739007039544,-500.0,0.00010958,2]
[352222188,1739007039554,-1081.45,0.00010958,2]
[352222189,1739007039564,-500.0,0.00010958,2]
[352222190,1739007039574,-500.0,0.00010958,2]
[352222191,1739007039583,-1448.14,0.00010958,2]
[352222192,1739007039591,-500.0,0.00010958,2]
[352222193,1739007039601,-500.0,0.00010958,2]
[352222194,1739007039610,-500.0,0.00010958,2]
[352222195,1739007039623,-500.0,0.00010958,2]
[352222196,1739007039636,-154.07922469,0.00010958,2]
[352222197,1739007039645,-500.0,0.00010958,2]
[352222198,1739007039655,-500.0,0.00010958,2]
[352222199,1739007039664,-500.0,0.00010958,2]
[352222200,1739007039674,-500.0,0.00010958,2]
[352222201,1739007039684,-500.0,0.00010958,2]
[352222202,1739007039692,-500.0,0.00010958,2]
[352222203,1739007039702,-500.0,0.00010958,2]
[352222204,1739007039711,-500.0,0.00010958,2]
[352222205,1739007039720,-500.0,0.00010958,2]
[352222206,1739007039729,-500.0,0.00010958,2]
[352222207,1739007039738,-500.0,0.00010958,2]
[352222208,1739007039747,-500.0,0.00010958,2]
[352222209,1739007039762,-728.24,0.00010958,2]
[352222210,1739007039774,-500.0,0.00010958,2]
[352222212,1739007039783,-500.0,0.00010958,2]
[352222213,1739007039793,-502.61370012,0.00010958,2]
[352222214,1739007039803,-500.0,0.00010958,2]
[352222215,1739007039812,-500.0,0.00010958,2]
[352222216,1739007039821,-500.0,0.00010958,2]
[352222217,1739007039831,-505.77075932,0.00010958,2]
[352222219,1739007039840,-500.0,0.00010958,2]
[352222221,1739007039849,-500.0,0.00010958,2]
[352222223,1739007039858,-500.0,0.00010958,2]
[352222224,1739007039867,-524.17210782,0.00010958,2]
[352222226,1739007039876,-500.0,0.00010958,2]
[352222227,1739007039886,-500.0,0.00010958,2]
[352222228,1739007039895,-500.0,0.00010958,2]
[352222229,1739007039904,-1668.75,0.00010958,2]
[352222230,1739007039914,-500.0,0.00010958,2]
[352222231,1739007039923,-500.0,0.00010958,2]
[352222232,1739007039933,-500.0,0.00010958,2]
[352222234,1739007039942,-500.0,0.00010958,2]
[352222236,1739007039951,-1106.23,0.00010958,2]
[352222238,1739007039960,-500.0,0.00010958,2]
[352222239,1739007039970,-500.0,0.00010958,2]
[352222241,1739007039979,-500.0,0.00010958,2]
[352222243,1739007039988,-500.0,0.00010958,2]
[352222245,1739007039997,-500.0,0.00010958,2]
[352222247,1739007040006,-500.0,0.00010958,2]
[352222248,1739007040016,-500.0,0.00010958,2]
[352222249,1739007040024,-500.0,0.00010958,2]
[352222251,1739007040034,-500.0,0.00010958,2]
[352222252,1739007040043,-500.0,0.00010958,2]
[352222253,1739007040052,-500.0,0.00010958,2]
[352222254,1739007040062,-670.76,0.00010958,2]
[352222255,1739007040071,-3090.51,0.00010958,2]
[352222256,1739007040080,-3024.02,0.00010958,2]
[352222257,1739007040090,-784.43,0.00010958,2]
[352222258,1739007040099,-500.0,0.00010958,2]
[352222259,1739007040108,-500.0,0.00010958,2]
[352222260,1739007040119,-500.0,0.00010958,2]
[352222261,1739007040128,-500.0,0.00010958,2]
[352222262,1739007040138,-500.0,0.00010958,2]
[352222263,1739007040147,-1068.4,0.00010958,2]
[352222264,1739007040156,-500.0,0.00010958,2]
[352222265,1739007040166,-500.0,0.00010958,2]
[352222266,1739007040175,-732.65,0.00010958,2]
[352222267,1739007040185,-707.03,0.00010958,2]
[352222268,1739007040195,-1706.72,0.00010958,2]
[352222269,1739007040204,-308.47284582,0.00010958,2]
[352222270,1739007040215,-500.0,0.00010958,2]
[352222271,1739007040224,-500.0,0.00010958,2]
[352222272,1739007040234,-1278.86,0.00010958,2]
[352222273,1739007040244,-3248.02,0.00010958,2]
[352222274,1739007040254,-500.0,0.00010958,2]
[352222275,1739007040264,-500.0,0.00010958,2]
[352222276,1739007040274,-500.0,0.00010958,2]
[352222277,1739007040286,-1280.75,0.00010958,2]
[352222278,1739007040296,-500.0,0.00010958,2]
[352222279,1739007040305,-458.54865058,0.00010958,2]
[352222280,1739007040316,-500.0,0.00010958,2]
[352222281,1739007040327,-500.0,0.00010958,2]
[352222283,1739007040336,-3866.75,0.00010958,2]
[352222285,1739007040348,-500.0,0.00010958,2]
[352222286,1739007040358,-500.0,0.00010958,2]
[352222287,1739007040368,-5250.54,0.00010958,2]
[352222288,1739007040377,-500.0,0.00010958,2]
[352222289,1739007040386,-500.0,0.00010958,2]
[352222290,1739007040395,-1953.82,0.00010958,2]
[352222291,1739007040404,-500.0,0.00010958,2]
[352222292,1739007040414,-662.45,0.00010958,2]
[352222293,1739007040423,-1286.53,0.00010958,2]
[352222294,1739007040432,-15376.82,0.00010958,2]
[352222295,1739007040441,-500.0,0.00010958,2]
[352222296,1739007040450,-500.0,0.00010958,2]
[352222297,1739007040459,-1112.14,0.00010958,2]
[352222298,1739007040469,-500.0,0.00010958,2]
[352222299,1739007040478,-500.0,0.00010958,2]
[352222300,1739007040488,-500.0,0.00010958,2]
[352222301,1739007040497,-500.0,0.00010958,2]
[352222302,1739007040507,-500.0,0.00010958,2]
[352222303,1739007040516,-500.0,0.00010958,2]
[352222304,1739007040526,-500.0,0.00010958,2]
[352222305,1739007040536,-500.0,0.00010958,2]
[352222306,1739007040546,-500.0,0.00010958,2]
[352222307,1739007040555,-500.0,0.00010958,2]
[352222308,1739007040564,-500.0,0.00010958,2]
[352222309,1739007040574,-500.0,0.00010958,2]
[352222310,1739007040583,-500.0,0.00010958,2]
[352222311,1739007040592,-500.0,0.00010958,2]
[352222312,1739007040601,-500.0,0.00010958,2]
[352222313,1739007040611,-500.0,0.00010958,2]
[352222314,1739007040619,-500.0,0.00010958,2]
[352222315,1739007040629,-340.22,0.00010958,2]
[352222316,1739007040638,-1825.85,0.00010958,2]
[352222317,1739007040647,-1511.4,0.00010958,2]
[352222318,1739007040657,-500.0,0.00010958,2]
[352222319,1739007040666,-500.0,0.00010958,2]
[352222320,1739007040675,-500.0,0.00010958,2]
[352222321,1739007040684,-500.0,0.00010958,2]
[352222322,1739007040693,-46311.32,0.00010958,2]
[352222323,1739007040702,-1291.95,0.00010958,2]
[352222324,1739007040711,-500.0,0.00010958,2]
[352222325,1739007040721,-871.93,0.00010958,2]
[352222326,1739007040730,-500.0,0.00010958,2]
[352222327,1739007040740,-500.0,0.00010958,2]
[352222328,1739007040749,-500.0,0.00010958,2]
[352222329,1739007040759,-1719.01,0.00010958,2]
[352222330,1739007040768,-287.81413658,0.00010958,2]
[352222331,1739007040777,-1949.55,0.00010958,2]
[352222332,1739007040787,-500.0,0.00010958,2]
[352222333,1739007040796,-500.0,0.00010958,2]
[352222334,1739007040806,-500.0,0.00010958,2]
[352222335,1739007040816,-500.0,0.00010958,2]
[352222336,1739007040825,-500.0,0.00010958,2]
[352222337,1739007040834,-500.0,0.00010958,2]
[352222338,1739007040843,-500.0,0.00010958,2]
[352222339,1739007040852,-500.0,0.00010958,2]
[352222340,1739007040861,-500.0,0.00010958,2]
[352222341,1739007040870,-500.0,0.00010958,2]
[352222342,1739007040885,-500.0,0.00010958,2]
[352222343,1739007040894,-1128.06,0.00010958,2]
[352222344,1739007040904,-500.0,0.00010958,2]
[352222345,1739007040913,-500.0,0.00010958,2]
[352222346,1739007040922,-500.0,0.00010958,2]
[352222347,1739007040931,-500.0,0.00010958,2]
[352222348,1739007040941,-500.0,0.00010958,2]
[352222349,1739007040950,-500.0,0.00010958,2]
[352222350,1739007040959,-500.0,0.00010958,2]
[352222351,1739007040968,-200.2267951,0.00010958,2]
[352222352,1739007040978,-500.0,0.00010958,2]
[352222353,1739007040987,-2537.01,0.00010958,2]
[352222354,1739007040996,-1252.41,0.00010958,2]
[352222355,1739007041006,-3253.82,0.00010958,2]
[352222356,1739007041015,-509.39700835,0.00010958,2]
[352222357,1739007041024,-677.11,0.00010958,2]
[352222358,1739007041033,-500.0,0.00010958,2]
[352222359,1739007041042,-500.0,0.00010958,2]
[352222360,1739007041051,-500.0,0.00010958,2]
[352222361,1739007041061,-3684.86,0.00010958,2]
[352222362,1739007041069,-607.76,0.00010958,2]
[352222363,1739007041079,-3858.64,0.00010958,2]
[352222364,1739007041088,-500.0,0.00010958,2]
[352222365,1739007041097,-1631.24,0.00010958,2]
[352222366,1739007041106,-8117.79,0.00010958,2]
[352222367,1739007041115,-776.39,0.00010958,2]
[352222368,1739007041124,-500.0,0.00010958,2]
[352222369,1739007041133,-500.0,0.00010958,2]
[352222370,1739007041142,-500.0,0.00010958,2]
[352222371,1739007041154,-1495.09,0.00010958,2]
[352222372,1739007041163,-500.0,0.00010958,2]
[352222373,1739007041173,-1522.31,0.00010958,2]
[352222374,1739007041182,-1245.07,0.00010958,2]
[352222375,1739007041190,-500.0,0.00010958,2]
[352222376,1739007041199,-500.0,0.00010958,2]
[352222377,1739007041208,-534.59254846,0.00010958,2]
[352222378,1739007041218,-500.0,0.00010958,2]
[352222379,1739007041227,-500.0,0.00010958,2]
[352222380,1739007041244,-548.3,0.00010958,2]
[352222381,1739007041263,-500.0,0.00010958,2]
[352222382,1739007041272,-705.51,0.00010958,2]
[352222383,1739007041283,-598.88,0.00010958,2]
[352222384,1739007041294,-4478.76,0.00010958,2]
[352222385,1739007041303,-500.0,0.00010958,2]
[352222386,1739007041314,-500.0,0.00010958,2]
[352222387,1739007041323,-877.79,0.00010958,2]
[352222388,1739007041332,-512.66205982,0.00010958,2]
[352222389,1739007041341,-500.0,0.00010958,2]
[352222390,1739007041351,-500.0,0.00010958,2]
[352222391,1739007041361,-614.29,0.00010958,2]
[352222392,1739007041370,-500.0,0.00010958,2]
[352222393,1739007041380,-500.0,0.00010958,2]
[352222394,1739007041389,-500.0,0.00010958,2]
[352222395,1739007041399,-500.0,0.00010958,2]
[352222396,1739007041409,-500.0,0.00010958,2]
[352222397,1739007041418,-500.0,0.00010958,2]